Cogmind - Beta 13 @@@ ROGUE MODE // 2024.05.03 @ 10:22:44 Player: skittytittles Result: Self-destructed Performance ------------- Evolutions (2) 1000 Regions Visited (5) 1000 Robots Destroyed (31) 155 Value Destroyed (795) 795 Prototype IDs (0) 0 Alien Tech Used (0) 0 Bonus (11) 11 TOTAL SCORE: 2961 Bonus ------- High Alert Combat Kills 11 Cogmind --------- Core Integrity 458/550 Matter 0/300 Energy 140/140 System Corruption 0% Temperature Cool (5) Movement Core (350) Ox6 Location -8/Materials Parts ------- > --- POWER (1) -------- Light Deuterium Engine > --- PROPULSION (4) --- (None) > --- UTILITY (4) ------ Small Storage Unit Targeting Computer Backup Plating III Makeshift Hacking Suite > --- WEAPON (2) ------- Rocket Launcher Rocket Launcher > --- INVENTORY (8) ---- Light Ion Engine Large Storage Unit Peak State ------------ > --- POWER ------------ Ion Engine > --- PROPULSION ------- Aluminum Leg Carbon-fiber Leg Carbon-fiber Leg > --- UTILITY ---------- Small Storage Unit Targeting Computer Hardened Light Armor Plating Makeshift Hacking Suite > --- WEAPON ----------- Light Assault Rifle Rocket Launcher > --- INVENTORY -------- Light Ion Engine Large Storage Unit Rocket Launcher Rocket Launcher [Rating: 19] Favorites ----------- Power Ion Engine Engine Ion Engine Propulsion Aluminum Leg Leg Aluminum Leg Utility Small Storage Unit Storage Small Storage Unit Processor Targeting Computer Hackware Makeshift Hacking Suite Protection Hardened Light Armor Plating Weapon Rocket Launcher Ballistic Gun Light Assault Rifle Launcher Rocket Launcher Build | -11 -10 -10 -10 -9 -8 ------- Run | Yrd Mat Min Exi Min Mat Slots Evolved 4 | . . . . . 4 Power . | . . . . . . Propulsion 2 | . . . . . 2 Utility 2 | . . . . . 2 Weapon . | . . . . . . Parts Attached 25 | 7 3 . 7 1 7 Power 3 | 2 . . . . 1 Engine 3 | 2 . . . . 1 Core . | . . . . . . Reactor . | . . . . . . Propulsion 4 | 2 . . 1 . 1 Treads . | . . . . . . Leg 4 | 2 . . 1 . 1 Wheel . | . . . . . . Hover . | . . . . . . Flight . | . . . . . . Utility 8 | 1 1 . 3 . 3 Device . | . . . . . . Storage 2 | 1 . . 1 . . Processor 1 | . . . . . 1 Hackware 1 | . . . 1 . . Protection 4 | . 1 . 1 . 2 Artifact . | . . . . . . Weapon 10 | 2 2 . 3 1 2 Energy Gun . | . . . . . . Energy Cannon . | . . . . . . Ballistic Gun 5 | 2 . . 3 . . Ballistic Cannon . | . . . . . . Launcher 5 | . 2 . . 1 2 Special Weapon . | . . . . . . Impact Weapon . | . . . . . . Slashing Weapon . | . . . . . . Piercing Weapon . | . . . . . . Special Melee Weapon . | . . . . . . Unidentified Prototypes . | . . . . . . Parts Lost 8 | . . . . 1 7 Power 1 | . . . . . 1 Propulsion 3 | . . . . . 3 Utility 1 | . . . . . 1 Weapon 3 | . . . . 1 2 Highest Loss Streak 6 | . . . . 1 6 To Critical Strikes . | . . . . . . Average Slot Usage (%) 96 | . 96 100 99 100 81 Engine 13 | . 14 14 14 14 8 Leg 27 | . 28 28 28 28 22 Storage 13 | . 14 14 14 14 9 Processor 1 | . . . . . 8 Hackware 4 | . . . 6 14 9 Protection 8 | . 11 14 7 . 6 Ballistic Gun 12 | . 4 . 20 24 6 Launcher 13 | . 22 28 8 4 11 Naked Turns . | . . . . . . Heaviest Build 23 | 13 23 23 23 15 20 Greatest Support 40 | 20 20 20 25 25 40 Greatest Overweight (x) 1 | 1 1 1 1 . 1 Average Overweight (x) . | . . 1 . . . Largest Inventory Capacity 8 | 8 8 8 8 8 8 Average Capacity 7 | 6 8 8 8 8 8 Most Carried 8 | 2 8 8 8 8 6 Average Carried 6 | 1 6 8 7 7 3 Final Capacity 8 | 8 8 8 8 8 8 Final Carried 8 | 2 8 8 8 7 2 Class Distribution -------------------- 100% | Mutant Dominant Class ---------------- Mutant | -10/Materials Mutant | -10/Mines Mutant | -10/Exiles Mutant | -9/Mines Mutant | -8/Materials Resources | -11 -10 -10 -10 -9 -8 ----------- Run | Yrd Mat Min Exi Min Mat Matter Collected 693 | 241 . 17 413 4 18 Remotely . | . . . . . . Salvage Created 675 | . 92 20 219 . 344 Parts 47 | . 11 2 9 . 25 Haulers Intercepted . | . . . . . . Recyclers Shooed . | . . . . . . Parts Field Recycled . | . . . . . . Retrieved Matter . | . . . . . . Parts Self-Destructed . | . . . . . . Prevented . | . . . . . . Kills | -11 -10 -10 -10 -9 -8 ------- Run | Yrd Mat Min Exi Min Mat Combat Hostiles Destroyed 22 | . 6 2 2 1 11 Guns 3 | . . . 2 . 1 AOE 19 | . 6 2 . 1 10 Classes Destroyed 10 | . 2 2 1 1 4 Worker 2 | . . . . . 2 Builder 3 | . . 1 . . 2 Recycler 2 | . 1 . . . 1 Mechanic 1 | . . . . . 1 Watcher 1 | . . . . . 1 Swarmer 9 | . 6 . . . 3 Grunt 9 | . . 2 1 . 6 Sentry 2 | . . . . . 2 Demolisher 1 | . . . . 1 . Hunter 1 | . . . 1 . . Best Kill Streak 11 | . 4 3 1 1 11 Combat Bots Only 8 | . 3 2 1 1 8 Max Kills in Single Turn 3 | . 3 2 1 1 3 Gunslinging . | . . . . . . Exploded 3 | . 3 1 . 1 2 Melee . | . . . . . . Uniques/NPCs Destroyed . | . . . . . . Combat | -11 -10 -10 -10 -9 -8 -------- Run | Yrd Mat Min Exi Min Mat Hostile Shots Fired 86 | . 14 7 . 10 55 Missed 34 | . 7 2 . 2 23 Damage Taken 1180 | . 86 88 . 308 698 Core 187 | . 9 18 . 68 92 Absorbed by Shields . | . . . . . . Core Remaining (%) 81 | 100 . . . 62 . Volleys Fired 59 | . 4 3 27 4 21 Largest 2 | . 2 2 2 2 2 Hottest 66 | . 66 66 66 40 66 Shots Fired 113 | . 8 6 54 7 38 Gun 70 | . . . 48 7 15 Cannon . | . . . . . . Launcher 43 | . 8 6 6 . 23 Special . | . . . . . . Kinetic 70 | . . . 48 7 15 Thermal . | . . . . . . Explosive 43 | . 8 6 6 . 23 Electromagnetic . | . . . . . . Robot Hit Streak 13 | . 1 2 13 2 4 Robot Miss Streak 3 | . 1 3 2 1 2 Penetration Max . | . . . . . . Secondary Targets . | . . . . . . Shots Hit Robots 65 | . 2 2 42 4 15 Core Hits 67 | . 8 7 10 3 39 Critical Kills 1 | . . . . . 1 Critical Parts Destroyed 1 | . . . 1 . . Critical Strikes 2 | . . . 1 . 1 Destroy 2 | . . . 1 . 1 Melee Attacks . | . . . . . . Impact . | . . . . . . Slashing . | . . . . . . Piercing . | . . . . . . Sneak Attacks . | . . . . . . Combat Hostiles . | . . . . . . Follow-up Attacks . | . . . . . . Damage Inflicted 2794 | . 292 309 573 65 1555 Guns 519 | . . . 400 65 54 Cannons . | . . . . . . Explosions 2275 | . 292 309 173 . 1501 Melee . | . . . . . . Ramming . | . . . . . . Kinetic 519 | . . . 400 65 54 Thermal . | . . . . . . Explosive 2275 | . 292 309 173 . 1501 Electromagnetic . | . . . . . . Impact . | . . . . . . Slashing . | . . . . . . Piercing . | . . . . . . Highest Corruption . | . . . . . . Average Corruption . | . . . . . . Corruption Purged . | . . . . . . Corruption Blocked . | . . . . . . Overload Shots . | . . . . . . Overflow Damage 50 | . . . . . 50 Projectiles . | . . . . . . Explosions 50 | . . . . . 50 Melee . | . . . . . . Knockbacks . | . . . . . . Impact . | . . . . . . Kinetic . | . . . . . . Secondary . | . . . . . . Self-Inflicted Damage 294 | . 36 20 . . 238 Shots 13 | . 2 1 . . 10 Rammed . | . . . . . . Targets Rammed . | . . . . . . Kicked . | . . . . . . Crushed . | . . . . . . Highest Temperature 93 | . 42 93 42 . 77 Average Temperature 22 | . 17 49 14 . 19 Received Heat Transfer 234 | . . 36 . . 198 Siege Activations . | . . . . . . Robots Corrupted . | . . . . . . Combat Hostiles . | . . . . . . Parts Fried . | . . . . . . Impact Corruptions . | . . . . . . Robots Melted . | . . . . . . Combat Hostiles . | . . . . . . Parts Melted . | . . . . . . Heat Transferred . | . . . . . . Parts Sabotaged . | . . . . . . Parts Stolen . | . . . . . . Parts Stripped . | . . . . . . Power Chain Reactions . | . . . . . . Alert | -11 -10 -10 -10 -9 -8 ------- Run | Yrd Mat Min Exi Min Mat Peak Influence 418 | . 216 182 . 30 418 Initial 84 | . . 84 . . 11 Average 112 | . 83 168 . 9 158 Maximum Alert Level 2 | . 1 . . . 2 Low Security (%) 85 | 100 83 100 . 100 62 Level 1 13 | . 16 . . . 36 Level 2 . | . . . . . 1 Level 3 . | . . . . . . Level 4 . | . . . . . . Level 5 . | . . . . . . High Security . | . . . . . . Max Security . | . . . . . . Squads Dispatched 1 | . . . . . 1 Investigation . | . . . . . . Extermination . | . . . . . . Reinforcement 1 | . . . . . 1 Assault . | . . . . . . Garrison . | . . . . . . Intercept . | . . . . . . Searches Triggered . | . . . . . . Construction Impeded 1 | . . . . . 1 Haulers Reinforced . | . . . . . . Active Scanning Responses . | . . . . . . Cargo Convoy Interrupts . | . . . . . . Stealth | -11 -10 -10 -10 -9 -8 --------- Run | Yrd Mat Min Exi Min Mat Distress Signals 1 | . . . . . 1 Communications Jammed . | . . . . . . Distress Signals . | . . . . . . Times Spotted 24 | . 6 2 . 2 14 Peak Tracking Total 11 | . 3 2 . 2 11 Tactical Retreats . | . . . . . . Traps | -11 -10 -10 -10 -9 -8 ------- Run | Yrd Mat Min Exi Min Mat Traps Triggered . | . . . . . . Indirectly . | . . . . . . Trap Hack Attempts . | . . . . . . Triggered . | . . . . . . Disarmed . | . . . . . . Reprogrammed . | . . . . . . Reused . | . . . . . . Traps Extracted . | . . . . . . Installed . | . . . . . . Triggered . | . . . . . . Machines | -11 -10 -10 -10 -9 -8 ---------- Run | Yrd Mat Min Exi Min Mat Machines Disabled 4 | . 1 1 . . 2 Max in Single Turn 2 | . 1 1 . . 2 Machines Repaired . | . . . . . . Machines Dismantled . | . . . . . . Machines Sabotaged . | . . . . . . Overloaded Fab Kills . | . . . . . . Hacking | -11 -10 -10 -10 -9 -8 --------- Run | Yrd Mat Min Exi Min Mat Machines Accessed 3 | . 2 . 1 . . Terminals 2 | . 2 . . . . Fabricators . | . . . . . . Repair Stations . | . . . . . . Recycling Units . | . . . . . . Scanalyzers . | . . . . . . Garrison Access . | . . . . . . Total Hacks 5 | . 4 . 1 . . Successful 3 | . 2 . 1 . . Failed 2 | . 2 . . . . Catastrophic . | . . . . . . Database Lockouts . | . . . . . . Manual . | . . . . . . Terminals 4 | . 4 . . . . Fabricators . | . . . . . . Repair Stations . | . . . . . . Recycling Units . | . . . . . . Scanalyzers . | . . . . . . Garrison Access . | . . . . . . Terminal Hacks 3 | . 2 . 1 . . Record 2 | . 1 . 1 . . Recall Investigation 1 | . 1 . . . . Fabricator Hacks . | . . . . . . Repair Station Hacks . | . . . . . . Recycling Unit Hacks . | . . . . . . Scanalyzer . | . . . . . . Garrison Access Hacks . | . . . . . . Unauthorized Hacks . | . . . . . . Terminals . | . . . . . . Fabricators . | . . . . . . Repair Stations . | . . . . . . Recycling Units . | . . . . . . Scanalyzers . | . . . . . . Garrison Access . | . . . . . . Data Cores Recovered . | . . . . . . Used . | . . . . . . Hacking Detections 2 | . 2 . . . . Full Trace Events . | . . . . . . Feedback Events . | . . . . . . Feedback Blocked . | . . . . . . Robot Schematics Acquired . | . . . . . . Robots Built . | . . . . . . Authchips . | . . . . . . Time . | . . . . . . Total Robot Build Rating . | . . . . . . Part Schematics Acquired . | . . . . . . Parts Built . | . . . . . . Authchips . | . . . . . . Time . | . . . . . . Total Part Build Rating . | . . . . . . Parts Repaired . | . . . . . . Time . | . . . . . . Parts Recycled . | . . . . . . Recycled Matter . | . . . . . . Retrieved Matter . | . . . . . . Retrieved Components . | . . . . . . Parts Scanalyzed . | . . . . . . Part Schematics Acquired . | . . . . . . Parts Damaged . | . . . . . . Bothacking | -11 -10 -10 -10 -9 -8 ------------ Run | Yrd Mat Min Exi Min Mat Used RIF Installer . | . . . . . . Robots Hacked . | . . . . . . Non-combat . | . . . . . . Combat . | . . . . . . Robot Hacks Applied . | . . . . . . Relay Couplers Released . | . . . . . . Fabnet Peak Effective % . | . . . . . . Robots Rewired . | . . . . . . Allies Hacked . | . . . . . . Hacks Repelled . | . . . . . . Allies | -11 -10 -10 -10 -9 -8 -------- Run | Yrd Mat Min Exi Min Mat Total Allies . | . . . . . . Largest Group . | . . . . . . Highest-Rated Group . | . . . . . . Highest-Rated Ally . | . . . . . . Total Orders . | . . . . . . Ally Attacks . | . . . . . . Total Damage . | . . . . . . Kills . | . . . . . . Allies Corrupted . | . . . . . . Allies Melted . | . . . . . . Intel | -11 -10 -10 -10 -9 -8 ------- Run | Yrd Mat Min Exi Min Mat Robot Analysis Total . | . . . . . . Derelict Logs Recovered . | . . . . . . Drone Launches . | . . . . . . Drone Recoveries . | . . . . . . Exploration | -11 -10 -10 -10 -9 -8 ------------- Run | Yrd Mat Min Exi Min Mat Turns Passed 1467 | 42 256 211 703 76 179 Spaces Moved 851 | 30 124 105 450 55 87 Core 8 | 8 . . . . . Treads . | . . . . . . Legs 843 | 22 124 105 450 55 87 Wheels . | . . . . . . Hover . | . . . . . . Flight . | . . . . . . Fastest Speed 50 | 50 120 190 120 120 120 Average Speed 144 | 103 166 190 135 120 131 Slowest Speed 190 | 120 190 190 190 120 190 Overloaded Moves . | . . . . . . Propulsion Burnouts . | . . . . . . Robots Hopped . | . . . . . . Cave-ins Triggered . | . . . . . . Exploration Rate (%) 31 | 4 32 39 80 23 13 Regions Visited 5 Branch Regions 3 Pre-discovered Areas 1 | . . 1 . . . Known Exits Taken . | . . . . . . Unknown Exits Taken 5 | 1 1 1 1 1 . Scrap Searched . | . . . . . . Spaces Dug 62 | . 14 . . . 48 Terrain Destroyed 306 | . 50 40 39 . 177 Melee . | . . . . . . Projectile . | . . . . . . AOE 306 | . 50 40 39 . 177 Terrain Rammed . | . . . . . . Walls Destroyed . | . . . . . . Machines Disabled . | . . . . . . Actions | -11 -10 -10 -10 -9 -8 --------- Run | Yrd Mat Min Exi Min Mat Total 984 | 37 165 111 497 59 115 Wait 37 | . 29 4 4 . . Move 846 | 29 123 104 449 54 87 Hop . | . . . . . . Pick Up 7 | 1 4 . 2 . . Fast Attach 14 | 6 3 . 3 . 2 Attach 6 | . . . . 1 5 Detach 4 | . 2 . 2 . . Swap 5 | 1 . . 4 . . Drop 6 | . . . 6 . . Fire 59 | . 4 3 27 4 21 Melee . | . . . . . . Ram . | . . . . . . Kick . | . . . . . . Crush . | . . . . . . Escape Stasis . | . . . . . . Rewire . | . . . . . . Trap . | . . . . . . Miscellaneous . | . . . . . . Route ------- -11/Scrapyard -10/Materials -10/Mines (discovered 2 exits: [*Mat] / *Exi) -10/Exiles (discovered 2 exits: [*Min x2]) -9/Mines -8/Materials History --------- Turn | Location | Event 24 | -11/Scrapyard | Discovered new exit (range 15) 43 | -11/Scrapyard | Entered Materials 288 | -10/Materials | Discovered new exit (range 6) 299 | -10/Materials | Entered Mines 310 | -10/Mines | Build established: Mutant 324 | -10/Mines | Discovered new exit (range 8) 473 | -10/Mines | Learned location of Storage (-8) 502 | -10/Mines | Deemed a non-threat by the Exiles lab entrance 502 | -10/Mines | Discovered new exit (range 5) 510 | -10/Mines | Entered Exiles 510 | -10/Exiles | Found Exiles lab destroyed 548 | -10/Exiles | Discovered new exit (range 14) 792 | -10/Exiles | Discovered new exit (range 14) 1213 | -10/Exiles | Entered Mines 1213 | -9/Mines | Discovered new exit (range 10) 1243 | -9/Mines | Assembled infested the area 1289 | -9/Mines | Entered Materials 1289 | -8/Materials | Evolved 4 slots: Propulsion x2, Utility x2 1448 | -8/Materials | Destroyed 8 combat bots 1455 | -8/Materials | Lost 6 parts (1p2n1u2w) 1468 | -8/Materials | Self-destructed Last Messages --------------- 01448_ Flight Unit crushed. 01448_ U-05 Engineer lays Concrete. 01449_ R-06 Scavenger collects Lgt. Assault Rifle. 01449_ U-05 Engineer builds a Wall. 01449_ U-05 Engineer lays Concrete. 01450_ U-05 Engineer builds a Wall. 01450_ U-05 Engineer lays Concrete. 01453_ U-05 Engineer builds a Wall. 01453_ U-05 Engineer lays Concrete. 01454_ Acquired Backup Plating III. 01455_ The unstable cave ceiling collapses. 01455_ R-06 Scavenger collects Flight Unit. 01455_ U-05 Engineer lays Concrete. 01464_ Carbon-fiber Leg destroyed. 01465_ U-05 Engineer destroyed. 01465_ G-47 Trooper destroyed. 01465_ U-05 Engineer lays Concrete. 01466_ The unstable cave ceiling collapses. 01467_ U-05 Engineer lays Concrete. Map ----- +----------------------------------------------------+ | ???????????????????????????????????????????? ????? | | ?????????????????????????????????????????? ????? | | ?????????????????????????????????????????? ????? | | ???????????????????????????????????? ??" ????? | | ???????????????????????????????????# ??" ???? | | ???????????????????????????????????# """ ???? | | ?????????????????????????????? ????# """ ???? | | ?????????????????????????????? ????# ???? | | ?????????????????????????????" "???# ???? | | ?????????????????????????????" "???# """ ???? | | ?????????????????????????????" "???# """ ???? | | ?????????????????????????????" "???# """ #### | | ?????????????????????????????" "???# """ | | ????????????????????????????? ???# | | ??????????????????????########/#???# | | ????????????????????### ## #???# #######+### | | ??????????????????###;;;;;;;;# ##### # # | | ??????????????????# [ ## # ## # """ # | | ??????????????????#"" # # + """ # | | ??????????????????#"R! # """ # | | ??????????????????#" u """ | | ??????????????????#* ** + """ | | ??????????????????# ! # # | | ??????????????????# % # # #### | | ??????????????????# [ ; ## # ### | | ??????????????????###### @ # # | | ?????????????????????# % ##### | | ??????????????????? g #??##### | | ????????????????!! #??????? | | ?????????????? ! u ### # #??????? | | ????????????# ! [% # ##??????? | | ????????????# " " #???????? | | ??????????????"Y" #???????? | | ???????????????"" # #####???????? | | ???????????????####### # #???????????? | | ???????????????? # #???????????? | | ????????????????= # ##???????????? | | ????????????????? # ##????????????? | | ?????????????????![ # # #?????????????? | | ??????????????????[% + ## ###?????????????? | | ??????????????????! ?#/#####???????????????? | | ??????????????????=%! ?? ????????????????????? | | ???????????????????*%* ??? ?????????????????????? | | ??????????????????? # ???????????????????????????? | | ????????????????????#????????????????????????????? | | ?????????????????????????????????????????????????? | | ?????????????????????????????????????????????????? | | ?????????????????????????????????????????????????? | | ?????????????????????????????????????????????????? | | ?????????????????????????????????????????????????? | +----------------------------------------------------+ Best States ------------- Heat Dissipation 31 Energy Generation 14 Energy Capacity 250 Matter Stores 300 Matter Capacity 300 Sight Range 16 Terrain Scan Density 10 Armor Coverage 150 Evasion (%) 55 Targeting Accuracy 5 Offensive Hacking 11 Item Schematics ----------------- None Robot Schematics ------------------ None Fabricated ------------ Nothing Alien Tech Used ----------------- None Achievements -------------- None Challenges ------------ None Game ------ Seed RemoteSubdwellerReplicator Manual? 0 Play Time 00:17:23 Cumulative 10.9 hours Start 2024.05.03 @ 10:07:48 End 2024.05.03 @ 10:22:44 Sessions 1 Manual Loads 0 Difficulty Rogue Special Mode None Game No. 13 Rogue 13 Adventurer 0 Explorer 0 Win Type - Total 0 Types 0/0/0/0/0/0/0/0/0 Lore% 12 Gallery% 14 Achievement% 16 Wizard Run 0 Options --------- Layout 1 ASCII 0 Keyboard 0 Movement Mouse Keybinds 0 Fullscreen 1 Font 24/Smallcaps Map View 50x35 Zoom Use 0% Tactical HUD 1 Map Filters NONE Filters NONE Steam 1 RUN: 0a1fc707-22eb-4f44-9235-f0f59b1b2bfe